bitfinex/quotes_ETHUSD_20240827
["timestamp","ask_amount","ask_price","bid_price","bid_amount"]
[1724730150755,8.52625178,2687.5,2686.9,0.35906933]
[1724730154139,8.52625178,2687.5,2687.0,2.2506]
[1724730154140,7.28,2687.5,2687.0,2.2506]
[1724730154385,8.52625178,2687.5,2687.0,2.31450802]
[1724730154597,8.52625178,2687.5,2687.0,3.07867193]
[1724730156396,1.24625178,2687.4,2687.0,2.31450802]
[1724730159671,7.28,2687.5,2687.0,2.31450802]
[1724730160011,7.28,2687.5,2687.0,2.2506]
[1724730160744,3.7217,2687.0,2686.4,2.2506]
[1724730160973,1.24625178,2686.9,2686.4,2.2506]
[1724730161841,1.24625178,2686.9,2686.5,0.06143749]
[1724730171609,1.24625178,2686.7,2686.5,0.06143749]
[1724730173599,1.24625178,2686.7,2686.1,2.2506]
[1724730173809,1.24625178,2686.7,2686.6,0.06170419]
[1724730174111,3.58865178,2686.7,2686.6,0.06170419]
[1724730174411,3.58865178,2686.7,2686.1,2.2506]
[1724730174583,3.58865178,2686.7,2686.6,0.06206916]
[1724730174782,3.58865178,2686.7,2686.1,2.2506]
[1724730174983,3.58865178,2686.7,2686.6,0.06206916]
[1724730175186,4.69189496,2686.7,2686.1,2.2506]
[1724730175365,3.58865178,2686.7,2686.6,0.06206916]
[1724730175564,3.58865178,2686.7,2686.1,2.2506]
[1724730175810,3.58865178,2686.7,2686.6,0.06206916]
[1724730176013,3.58865178,2686.7,2686.1,5.97345]
[1724730176192,3.58865178,2686.7,2686.6,0.06206916]
[1724730176522,7.31048178,2686.9,2686.6,0.06206916]
[1724730176671,8.41368596,2686.9,2686.1,5.97345]
[1724730176871,1.24625178,2686.9,2686.2,3.78479916]
[1724730178282,1.24625178,2686.9,2686.2,0.06206916]
[1724730178618,2.3424,2686.8,2686.2,0.06206916]
[1724730179477,2.3424,2686.8,2686.2,3.78478916]
[1724730180779,1.24625178,2686.7,2686.2,3.78478916]
[1724730180978,1.24625178,2686.7,2686.3,0.97581392]
[1724730181387,1.24625178,2686.7,2686.4,0.05800018]
[1724730181590,7.28,2687.2,2686.5,3.72231]
[1724730181803,1.24625178,2687.1,2686.5,5.99791]
[1724730182118,1.24625178,2687.1,2686.6,0.05809846]
[1724730182420,1.24625178,2686.9,2686.6,0.05809846]
[1724730182917,1.24625178,2686.9,2686.7,0.05804932]
[1724730183222,1.24625178,2686.9,2686.4,3.72243]
[1724730183419,1.24625178,2686.9,2686.8,0.05804932]
[1724730183714,1.24625178,2686.9,2686.4,3.72243]
[1724730183916,1.24625178,2686.9,2686.5,1.06964239]
[1724730184119,1.24625178,2686.9,2686.6,0.05804932]
[1724730185504,7.28,2687.2,2686.9,3.72174]
[1724730185706,7.28,2687.2,2687.0,2.33361424]
[1724730186417,7.28,2687.2,2687.0,2.93914966]
[1724730189607,14.73504178,2687.6,2687.0,2.93914966]
[1724730190377,11.01425178,2687.6,2687.0,2.93914966]
[1724730192441,11.01425178,2687.6,2687.0,2.33361424]
[1724730192750,1.24625178,2687.4,2687.0,2.33361424]
[1724730194137,1.24625178,2687.4,2687.0,2.2756]
[1724730194338,1.24625178,2687.2,2686.7,3.72195]
[1724730194542,1.24625178,2687.2,2686.8,0.0577405]
[1724730195044,1.24625178,2687.2,2686.7,6.12325]
[1724730195347,1.24625178,2687.2,2686.8,3.72186]
[1724730195498,1.24625178,2687.2,2686.8,3.7796005]
[1724730197400,1.24625178,2687.4,2686.8,3.7796005]
[1724730197694,1.24625178,2687.4,2686.8,0.0577405]
[1724730199721,1.24625178,2687.4,2686.8,3.7795905]
[1724730199944,1.24625178,2687.4,2686.8,4.89449973]
[1724730201662,1.24625178,2687.4,2686.8,0.0577405]
[1724730202977,1.24625178,2687.4,2686.7,6.12325]
[1724730203338,1.24625178,2687.4,2686.8,0.0574808]
[1724730203562,1.24625178,2687.4,2686.7,6.12325]
[1724730203967,1.24625178,2687.4,2686.8,3.77936782]
[1724730206379,1.24625178,2687.4,2686.8,3.72188]
[1724730207202,1.24625178,2687.4,2686.9,0.05748782]
[1724730212452,1.24625178,2687.4,2687.0,2.4279]
[1724730212745,1.24625178,2687.4,2687.1,0.05745273]
[1724730213948,12.24707178,2687.6,2687.1,0.05745273]
[1724730214159,14.6570683,2687.6,2687.0,2.4279]
[1724730214685,14.6570683,2687.6,2687.1,0.05745273]
[1724730215092,14.6570683,2687.6,2687.0,2.4279]
[1724730215310,1.24625178,2687.4,2687.0,2.4279]
[1724730215451,1.24625178,2687.4,2687.1,0.05745273]
[1724730215974,14.6570683,2687.6,2687.1,0.05745273]
[1724730216181,2.07762283,2687.5,2687.1,0.05745273]
[1724730216364,2.07762283,2687.5,2687.0,2.4279]
[1724730216749,2.07762283,2687.5,2687.1,0.05745273]
[1724730216950,2.07762283,2687.5,2687.0,2.4279]
[1724730217149,12.24707178,2687.6,2687.1,0.05745273]
[1724730217395,2.3985,2687.7,2687.0,6.14942]
[1724730217689,4.24625178,2687.8,2687.2,2.4279]
[1724730218103,4.24625178,2687.8,2687.3,0.05740361]
[1724730218251,4.24625178,2687.8,2687.2,2.4279]
[1724730218898,10.9998863,2687.8,2687.2,2.4279]
[1724730219097,13.73361972,2687.8,2687.3,0.05740361]
[1724730219248,13.73361972,2687.8,2687.2,2.4279]
[1724730219249,10.9998863,2687.8,2687.2,2.4279]
[1724730219992,10.9998863,2687.8,2687.3,0.05733344]
[1724730220350,10.9998863,2687.8,2687.2,2.4279]
[1724730220565,1.24625178,2687.6,2687.3,0.05733344]
[1724730220804,1.24625178,2687.6,2687.2,2.4279]
[1724730220958,1.24625178,2687.6,2687.4,0.05733344]
[1724730221385,1.24625178,2687.6,2687.2,2.4279]
[1724730221614,1.24625178,2687.6,2687.5,0.05718605]
[1724730221816,2.52011417,2687.6,2687.2,2.4279]
[1724730222023,2.52011417,2687.6,2687.5,0.05718605]
[1724730222292,3.72101,2687.5,2687.0,2.4279]
[1724730222519,1.24625178,2687.3,2687.0,2.4279]
[1724730222888,1.24625178,2687.3,2687.1,0.05718605]
[1724730224195,5.46419796,2687.3,2686.8,2.4279]
[1724730224401,5.46419796,2687.3,2686.4,3.7224]
[1724730224402,1.24625178,2686.9,2686.5,2.4279]
[1724730226505,8.85543232,2687.2,2686.3,3.72258]
[1724730226506,1.24625178,2686.7,2686.3,2.4279]
[1724730227040,3.64475178,2686.9,2686.3,2.4279]
[1724730227343,3.64475178,2686.9,2686.3,6.15046]
[1724730227534,3.64475178,2686.9,2686.3,7.26239318]
[1724730228443,3.64475178,2686.9,2686.3,3.53983318]
[1724730228736,3.64475178,2686.9,2686.3,7.26240318]
[1724730228938,1.24625178,2686.9,2686.3,7.26240318]
[1724730232020,1.24625178,2686.9,2686.4,0.05794404]
[1724730233640,1.24625178,2686.9,2686.4,1.16224076]
[1724730234541,1.24625178,2686.9,2686.4,0.05794404]
[1724730239154,3.72191,2686.8,2686.4,0.05794404]
[1724730239306,1.24625178,2686.5,2686.4,0.05794404]
[1724730239749,1.24625178,2686.5,2686.0,3.72293]
[1724730240050,1.24625178,2686.3,2685.9,2.3953]
[1724730240418,1.24625178,2686.3,2686.1,0.05806338]
[1724730240574,1.24625178,2686.5,2685.9,2.3953]
[1724730240774,1.24625178,2686.5,2686.0,0.05806338]
[1724730240944,8.52625178,2686.7,2686.1,2.3953]
[1724730241375,8.52625178,2686.7,2686.2,0.05816869]
[1724730242044,1.24625178,2686.5,2686.2,0.05816869]
[1724730247588,7.28,2686.7,2686.2,0.05816869]
[1724730247913,8.52625178,2686.7,2686.2,3.78088869]
[1724730249435,9.98218415,2686.7,2686.2,3.78088869]
[1724730249634,8.52625178,2686.7,2686.2,3.78088869]
[1724730250539,1.24625178,2686.7,2686.2,3.78088869]
[1724730252189,1.24625178,2686.7,2686.2,0.05816869]
[1724730252338,1.24625178,2686.5,2686.2,0.05816869]
[1724730257155,1.24625178,2686.5,2686.0,2.3914]
[1724730257675,1.24625178,2686.5,2686.1,0.05854783]
[1724730257878,2.11529796,2686.5,2686.1,0.05854783]
[1724730258174,1.24625178,2686.3,2686.1,0.05854783]
[1724730259788,1.24625178,2686.3,2685.8,6.11467]
[1724730259991,1.24625178,2686.3,2685.9,0.05854783]
[1724730263468,6.16802,2686.5,2685.9,0.05854783]
[1724730263469,3.72232,2686.5,2685.9,0.05854783]
[1724730263687,1.24625178,2686.4,2686.0,2.3914]
[1724730263885,1.24625178,2686.4,2686.0,2.45006019]
[1724730266182,1.74310896,2686.4,2686.0,2.45006019]
[1724730269267,1.24625178,2686.4,2686.0,2.45006019]
[1724730271415,1.24625178,2686.4,2686.0,2.21457491]
[1724730279882,7.28,2686.6,2686.0,2.21457491]
[1724730280191,8.52625178,2686.6,2686.0,2.15591472]
[1724730280978,8.52625178,2686.6,2686.0,5.87883472]
[1724730281276,8.52625178,2686.6,2686.1,0.05874445]
[1724730281649,1.24625178,2686.6,2686.1,0.05874445]
[1724730282330,1.24625178,2686.6,2686.2,2.432]
[1724730282976,3.98360892,2686.8,2686.3,0.05874445]
[1724730283134,3.98360892,2686.8,2686.4,2.432]
[1724730283340,1.24625178,2686.6,2686.4,2.432]
[1724730285442,1.24625178,2686.6,2686.1,3.72279]
[1724730285651,1.24625178,2686.6,2686.5,0.0587304]
[1724730285851,1.24625178,2686.6,2686.2,2.432]
[1724730286078,1.24625178,2686.6,2686.5,0.0587304]
[1724730286280,2.16688295,2686.6,2686.2,2.432]
[1724730286485,2.16688295,2686.6,2686.5,0.0587304]
[1724730287060,2.16688295,2686.6,2686.2,2.432]
[1724730287474,2.16688295,2686.6,2686.5,0.0587304]
[1724730287676,2.16688295,2686.6,2686.2,2.432]
[1724730287876,2.16688295,2686.6,2686.5,0.0587304]
[1724730288274,2.16688295,2686.6,2686.2,2.432]
[1724730288553,0.5888933,2686.5,2686.2,2.432]
[1724730290056,2.16688295,2686.6,2686.2,2.432]
[1724730290596,1.24625178,2686.6,2686.2,2.432]
[1724730291998,1.24625178,2686.6,2686.3,0.05872337]
[1724730292386,1.24625178,2686.6,2686.2,2.432]
[1724730292613,1.24625178,2686.6,2686.4,0.05872337]
[1724730292813,1.24625178,2686.6,2686.2,2.432]
[1724730293243,1.24625178,2686.6,2686.3,0.05872337]
[1724730293543,1.24625178,2686.6,2686.2,2.432]
[1724730293744,1.24625178,2686.6,2686.4,0.05872337]
[1724730293939,1.24625178,2686.6,2686.2,2.432]
[1724730294144,1.24625178,2686.6,2686.5,0.05872337]
[1724730294298,2.1668969,2686.6,2686.2,2.432]
[1724730294635,2.1668969,2686.6,2686.5,0.05872337]
[1724730294943,2.1668969,2686.6,2686.2,2.432]
[1724730295137,1.24625178,2686.6,2686.5,0.05871635]
[1724730295343,1.24625178,2686.6,2686.2,2.432]
[1724730295642,1.24625178,2686.6,2686.5,0.05871635]
[1724730295844,1.24625178,2686.6,2686.2,2.432]
[1724730296014,2.5391099,2686.6,2686.2,2.432]
[1724730296213,2.5391099,2686.6,2686.3,0.05871635]
[1724730296738,6.2613299,2686.6,2686.0,2.432]
[1724730296943,6.2613299,2686.6,2686.4,0.05872337]
[1724730297149,6.2613299,2686.6,2686.0,2.432]
[1724730297298,6.2613299,2686.6,2686.5,0.05872337]
[1724730297499,6.2613299,2686.6,2686.0,2.432]
[1724730297747,6.2613299,2686.6,2686.5,0.05872337]
[1724730297949,6.2613299,2686.6,2686.0,2.432]
[1724730298131,6.2613299,2686.6,2686.5,0.05872337]
[1724730298334,1.29285812,2686.6,2686.0,2.432]
[1724730298649,4.96830178,2686.7,2686.5,0.05872337]
[1724730298846,4.96830178,2686.7,2686.2,2.432]
[1724730300337,4.96830178,2686.7,2686.3,0.05872337]
[1724730300499,7.28,2686.9,2686.4,2.3229]
[1724730300704,7.28,2686.9,2686.5,0.73660601]
[1724730301013,7.28,2686.9,2686.5,0.05870932]
[1724730301217,1.24625178,2687.0,2686.5,0.05870932]
[1724730302042,7.28,2687.2,2686.6,2.3229]
[1724730302245,7.28,2687.2,2686.7,6.04489]
[1724730302413,7.28,2687.2,2686.7,6.78731949]
[1724730302620,7.28,2687.2,2686.8,0.05847759]
[1724730303003,7.28,2687.2,2686.7,6.78731949]
[1724730303210,7.28,2687.2,2686.9,0.05847759]
[1724730303427,18.49083,2687.5,2686.7,8.03353127]
[1724730303746,18.49083,2687.5,2687.1,2.3229]
[1724730303747,12.35,2687.5,2687.1,2.3229]
[1724730304462,12.35,2687.5,2687.2,0.05830207]
[1724730304751,10.38667178,2687.8,2687.1,2.3229]
[1724730304936,1.24625178,2687.6,2687.2,0.05830207]
[1724730305116,1.24625178,2687.6,2687.1,2.3229]
[1724730305316,3.0,2687.7,2687.2,0.05830207]
[1724730305655,7.86345215,2687.9,2687.3,2.3229]
[1724730305820,7.86345215,2687.9,2687.3,3.56915178]
[1724730306149,7.28,2687.9,2687.4,2.38091428]
[1724730306316,7.28,2687.9,2687.4,2.3229]
[1724730306654,7.28,2687.9,2687.5,0.05789497]
[1724730309255,1.24625178,2687.7,2687.5,0.05789497]
[1724730313150,8.52625178,2687.9,2687.5,0.05789497]
[1724730313369,8.52625178,2687.9,2687.4,2.3229]
[1724730313664,8.52625178,2687.9,2687.5,0.0567651]
[1724730316708,8.52625178,2687.9,2687.6,2.3229]
[1724730317008,8.52625178,2687.9,2687.7,0.05672301]
[1724730317503,1.24625178,2687.9,2687.7,0.05672301]
[1724730317708,7.96637178,2688.1,2687.7,0.05672301]
[1724730317904,9.98036078,2688.1,2687.6,2.3229]
[1724730319321,9.98036078,2688.1,2687.7,0.05672301]
[1724730320325,1.24625178,2687.9,2687.7,0.05672301]
[1724730320883,3.72051,2687.8,2687.7,0.05672301]
[1724730321080,4.21718618,2687.8,2687.4,2.3743]
[1724730321285,1.24625178,2687.7,2687.4,2.3743]
[1724730322029,1.24625178,2687.7,2687.5,0.05673003]
[1724730324507,4.96692178,2687.7,2687.1,2.3743]
[1724730324705,4.96692178,2687.7,2687.2,0.05678613]
[1724730324706,1.24625178,2687.5,2687.2,0.05678613]
[1724730325995,13.26764,2687.9,2687.2,0.05678613]
[1724730326302,8.52625178,2687.9,2687.3,2.3743]
[1724730326634,8.52625178,2687.9,2687.4,0.05678613]
[1724730327949,1.24625178,2687.7,2687.4,0.05678613]
[1724730331329,3.53445178,2687.7,2687.4,0.05678613]
[1724730331534,3.53445178,2687.7,2687.2,3.72124]
[1724730331740,3.53445178,2687.7,2687.3,0.05489326]
[1724730331925,4.98793696,2687.7,2687.1,2.3887]
[1724730332127,3.53445178,2687.7,2687.2,0.05489326]
[1724730333358,1.24625178,2687.7,2687.2,0.05489326]
[1724730335344,1.24625178,2687.7,2687.3,2.3887]
[1724730335744,1.24625178,2687.7,2687.4,0.05489326]
[1724730337246,7.28,2687.9,2687.6,2.3887]
[1724730337635,7.28,2687.9,2687.7,0.05498446]
[1724730337831,4.24625178,2688.1,2687.7,0.05498446]
[1724730339935,3.0,2688.1,2687.7,0.05498446]
[1724730340133,4.24625178,2688.2,2687.7,0.05498446]
[1724730340336,5.99966596,2688.2,2687.7,0.05498446]
[1724730340983,10.99983,2688.3,2688.1,2.3887]
[1724730340984,7.28,2688.3,2688.1,2.3887]
[1724730341165,7.28,2688.3,2688.2,0.0548652]
[1724730341787,7.28,2688.3,2688.1,2.3887]
[1724730344166,1.24625178,2688.6,2688.1,2.3887]
[1724730346604,15.08098065,2689.1,2688.1,2.3887]
[1724730346605,1.24625178,2689.6,2688.9,7.43798]
[1724730346818,1.24625178,2689.6,2689.0,2.3887]
[1724730347025,3.71787,2689.8,2689.0,2.44324959]
[1724730347168,1.24625178,2689.4,2689.0,2.44324959]
[1724730347361,2.2882,2689.9,2689.0,2.44324959]
[1724730347605,1.24625178,2689.5,2689.0,2.44324959]
[1724730348174,3.71778,2689.8,2689.0,2.44324959]
[1724730348376,1.24625178,2689.7,2689.0,2.44324959]
[1724730348584,1.24625178,2689.5,2689.0,2.44324959]
[1724730351611,1.24625178,2689.3,2689.0,2.44324959]
[1724730352112,1.24625178,2689.5,2689.0,2.44324959]
[1724730352258,4.389918,2689.6,2689.0,2.44324959]
[1724730352465,1.24625178,2689.5,2689.0,2.44324959]
[1724730353440,1.24625178,2689.5,2689.0,2.3887]
[1724730353703,2.10986876,2689.5,2689.0,2.3887]
[1724730353908,2.10986876,2689.5,2689.1,0.05359593]
[1724730354278,1.24625178,2689.4,2689.1,0.05359593]
[1724730355012,2.10986876,2689.5,2689.1,0.05359593]
[1724730357111,5.63616978,2689.6,2689.1,0.05359593]
[1724730357408,1.24625178,2689.5,2689.1,0.05359593]
[1724730360914,7.4080957,2690.1,2689.2,2.2903]
[1724730361219,8.65434748,2690.1,2689.5,2.2903]
[1724730361717,8.65434748,2690.1,2689.6,0.05344876]
[1724730361718,8.9468991,2690.1,2689.6,0.05344876]
[1724730361896,8.65434748,2690.1,2689.6,0.05344876]
[1724730362467,1.24625178,2689.9,2689.6,0.05344876]
[1724730362696,4.96394178,2689.9,2689.6,0.05344876]
[1724730362894,1.24625178,2689.7,2689.1,3.71867]
[1724730363108,4.96394178,2689.9,2689.2,6.00886]
[1724730363312,4.96394178,2689.9,2689.3,0.972749]
[1724730363882,11.1254357,2690.1,2689.5,2.2903]
[1724730364220,1.24625178,2690.0,2689.5,2.2903]
[1724730364511,1.24625178,2690.0,2689.6,0.05344876]
[1724730364891,1.24625178,2690.0,2689.5,2.2903]
[1724730365212,1.24625178,2690.0,2689.6,0.05344876]
[1724730365412,1.24625178,2690.0,2689.5,2.2903]
[1724730365609,1.24625178,2690.0,2689.6,0.05344876]
[1724730365610,4.96375178,2690.0,2689.6,0.05344876]
[1724730365819,4.96375178,2690.0,2689.5,2.2903]
[1724730365974,4.96375178,2690.0,2689.6,0.05344876]
[1724730366171,4.96375178,2690.0,2689.5,2.2903]
[1724730366480,7.4080957,2690.1,2689.6,0.05344876]
[1724730366680,8.65434748,2690.1,2689.6,0.05344876]
[1724730366978,12.37171748,2690.1,2689.6,0.05344876]
[1724730367498,3.71749,2690.0,2689.6,0.05344876]
[1724730367702,1.24625178,2689.9,2689.6,0.05344876]
[1724730368077,1.24625178,2689.9,2689.5,2.2903]
[1724730368270,1.24625178,2689.9,2689.5,2.51933]
[1724730368576,3.71774,2689.8,2689.6,0.05344876]
[1724730368921,0.1280957,2690.1,2689.7,2.2903]
[1724730369080,0.1280957,2690.1,2689.7,6.00807]
[1724730369284,0.1280957,2690.1,2690.0,1.24625178]
[1724730369523,0.1280957,2690.1,2690.0,7.75039596]
[1724730369723,2.71094288,2691.8,2690.0,7.75039596]
[1724730369724,0.5827864,2691.2,2690.3,3.717]
[1724730369923,0.5827864,2691.2,2690.0,1.74262596]
[1724730369924,1.24625178,2691.5,2690.8,2.2903]
[1724730370077,1.24625178,2691.5,2690.8,6.00665]
[1724730370271,3.71557,2691.4,2690.9,0.05239049]
[1724730371571,4.96192178,2691.3,2690.9,0.05239049]
[1724730371806,1.24625178,2691.1,2690.9,0.05239049]
[1724730372017,10.41770058,2691.0,2690.9,0.05239049]
[1724730372236,3.71629,2690.9,2690.4,2.2903]
[1724730372371,3.71637,2690.8,2690.4,2.2903]
[1724730372571,3.71609,2691.0,2690.5,0.04697372]
[1724730372978,2.98552058,2691.0,2690.5,0.04697372]
[1724730373178,3.71636,2690.8,2690.5,0.04697372]
[1724730373619,3.71654,2690.7,2690.5,0.04697372]
[1724730373791,3.71654,2690.7,2690.0,2.2903]
[1724730373792,3.71688,2690.5,2690.0,2.2903]
[1724730373996,3.71688,2690.5,2690.1,0.04728143]
[1724730373997,3.71714,2690.3,2690.1,0.04728143]
[1724730374210,3.71714,2690.3,2690.0,2.2903]
[1724730374523,3.71714,2690.3,2690.1,0.04728143]
[1724730374828,3.71719,2690.2,2690.1,0.04728143]
[1724730375193,3.71719,2690.2,2689.6,2.2635]
[1724730375533,3.71719,2690.2,2689.7,0.27374335]
[1724730376598,6.70245058,2690.4,2689.7,0.27374335]
[1724730377006,3.71707,2690.3,2689.7,0.27374335]
[1724730377403,6.70272058,2690.2,2689.7,0.04739335]
[1724730377576,6.70310058,2690.0,2689.7,0.04739335]
[1724730377799,6.70310058,2690.0,2689.2,2.2635]
[1724730377800,3.71774,2689.8,2689.2,2.2635]
[1724730377981,3.71761,2689.9,2689.3,0.04674069]
[1724730377982,3.7179,2689.7,2689.3,0.04674069]
[1724730379796,3.71761,2689.9,2689.3,0.04674069]
[1724730379990,3.71761,2689.9,2689.3,0.23102407]
[1724730380222,2.98552058,2690.0,2689.3,0.23102407]
[1724730380223,3.71751,2690.0,2689.3,0.23102407]
[1724730380734,3.71788,2689.7,2689.3,0.23102407]
[1724730381043,3.71788,2689.7,2689.4,0.04518267]
[1724730381537,3.71788,2689.7,2689.2,2.2635]
[1724730381756,10.26552058,2690.1,2689.5,0.04518267]
[1724730382053,10.99734,2690.1,2689.6,0.04518267]
[1724730382638,3.71747,2690.0,2689.7,0.04518267]
[1724730382988,3.71747,2690.0,2689.3,0.55]
[1724730383191,3.71747,2690.0,2689.4,0.69837967]
[1724730384007,3.71734,2690.1,2689.5,2.2635]
[1724730384541,3.71734,2690.1,2689.6,0.04518267]
[1724730384893,6.70286058,2690.1,2689.5,2.2635]
[1724730385137,3.71757,2690.0,2689.7,0.04518267]
[1724730385432,6.70286058,2690.1,2689.8,0.04518267]
[1724730385433,3.71761,2689.9,2689.8,0.04518267]
[1724730385921,3.71761,2689.9,2689.5,2.2635]
[1724730386319,3.71761,2689.9,2689.6,0.04518267]
[1724730386540,3.71776,2689.8,2689.6,0.04518267]
[1724730387036,3.71788,2689.7,2689.2,2.2635]
[1724730387958,3.71818,2689.5,2689.2,2.2635]
[1724730388637,3.71788,2689.7,2689.2,2.2635]
[1724730388850,7.43587,2689.7,2689.2,2.2635]
[1724730389647,3.71788,2689.7,2689.2,2.2635]
[1724730389949,3.71788,2689.7,2689.2,2.48985]
[1724730390754,9.5412,2690.0,2689.2,6.20837]
[1724730390755,7.28,2690.0,2689.2,6.20837]
[1724730390906,7.28,2690.0,2689.3,6.14456]
[1724730391761,3.71736,2690.1,2689.3,6.14456]
[1724730391925,3.71736,2690.1,2689.4,1.008943]
[1724730392244,3.71747,2690.0,2689.4,1.008943]
[1724730392758,3.71762,2689.9,2689.4,1.008943]
[1724730394871,6.70288058,2690.1,2689.4,1.008943]
[1724730395157,7.43479,2690.1,2689.5,2.4262]
[1724730395363,7.43479,2690.1,2689.5,2.47176026]
[1724730395567,3.71736,2690.1,2689.5,2.47176026]
[1724730395907,7.43478,2690.1,2689.5,2.47176026]
[1724730396413,3.71749,2690.0,2689.5,2.47176026]
[1724730396962,3.71762,2689.9,2689.5,2.47176026]
[1724730401228,3.71762,2689.9,2689.5,2.71893629]
[1724730404531,3.7179,2689.7,2689.5,0.04556026]
[1724730404732,2.3964,2690.0,2689.2,2.4262]
[1724730404733,3.71802,2689.6,2689.2,2.4262]
[1724730405065,3.71822,2689.5,2689.3,0.04556724]
[1724730405233,3.71802,2689.6,2689.3,0.04556724]
[1724730405931,7.43612,2689.6,2689.3,0.04556724]
[1724730406133,7.43614,2689.6,2689.3,0.04556724]
[1724730406356,3.71818,2689.5,2689.3,0.04556724]
[1724730407051,3.71802,2689.6,2689.3,0.04556724]
[1724730408565,3.71791,2689.7,2689.3,0.04556724]
[1724730408923,10.42121058,2689.8,2689.3,0.04556724]
[1724730409435,6.70334058,2689.8,2689.2,2.4262]
[1724730409634,10.42117058,2689.8,2689.4,0.04567914]
[1724730409851,6.70334058,2689.8,2689.2,3.040695]
[1724730410154,10.42116058,2689.8,2689.2,3.040695]
[1724730410356,10.42117058,2689.8,2689.2,3.040695]
[1724730410556,10.42117058,2689.8,2689.3,0.04567914]
[1724730411875,6.70334058,2689.8,2689.3,0.04567914]
[1724730416180,3.71798,2689.7,2689.3,0.04567914]
[1724730417352,2.98552058,2689.8,2689.3,0.04567914]
[1724730419891,6.70330058,2689.8,2689.3,0.04567914]
[1724730420292,3.7179,2689.7,2689.3,0.04567914]
[1724730420456,6.70330058,2689.8,2689.3,0.04567914]
[1724730420792,10.42117058,2689.8,2689.3,0.04567914]
[1724730421020,6.70330058,2689.8,2689.3,0.04567914]
[1724730421178,10.42114058,2689.8,2689.3,0.04567914]
[1724730421381,6.70330058,2689.8,2689.3,0.04567914]
[1724730422195,10.42116058,2689.8,2689.3,0.04567914]
[1724730422909,6.70330058,2689.8,2689.3,0.04567914]
[1724730423277,3.71791,2689.7,2689.3,0.04567914]
[1724730426815,3.7183,2689.4,2689.3,0.04567914]
[1724730426969,3.7183,2689.4,2688.9,2.4382]
[1724730426970,3.71867,2689.2,2688.9,2.4382]
[1724730427291,3.71867,2689.2,2688.5,2.4382]
[1724730427292,7.43733,2689.2,2688.5,2.4382]
[1724730427496,3.71866,2689.2,2688.6,0.615782]
[1724730427667,3.71866,2689.2,2688.6,0.65884902]
[1724730427668,7.43735,2689.2,2688.6,0.65884902]
[1724730427868,7.43734,2689.2,2688.6,0.65884902]
[1724730428482,3.71866,2689.2,2688.6,0.65884902]
[1724730428689,3.71866,2689.2,2688.8,2.4382]
[1724730429211,3.71866,2689.2,2688.9,0.04306702]
[1724730433313,3.71866,2689.2,2688.8,2.4382]
[1724730433673,3.71866,2689.2,2688.9,0.04306702]
[1724730433970,7.43733,2689.2,2688.8,2.4382]
[1724730435489,7.43735,2689.2,2688.8,2.4382]
[1724730435689,3.71866,2689.2,2688.8,2.4382]
[1724730436213,3.71866,2689.2,2688.9,0.04306702]
[1724730436519,3.71866,2689.2,2688.8,2.4382]
[1724730436919,3.71876,2689.1,2688.9,0.04306702]
[1724730437587,3.71876,2689.1,2688.8,2.4382]
[1724730438187,3.71876,2689.1,2688.8,2.68202]
[1724730438390,3.71866,2689.2,2688.9,0.04338159]
[1724730438610,7.43732,2689.2,2688.9,0.04338159]
[1724730439140,3.71873,2689.1,2688.9,0.04338159]
[1724730440610,3.71866,2689.2,2688.9,0.04338159]
[1724730440804,3.71837,2689.4,2688.9,0.04338159]
[1724730440805,2.98552058,2689.3,2688.9,0.04338159]
[1724730441126,3.71885,2689.0,2688.6,2.2596]
[1724730441338,3.71914,2688.8,2688.2,2.2596]
[1724730441647,7.43838,2688.8,2688.2,2.2596]
[1724730441793,3.71914,2688.8,2688.3,0.04338159]
[1724730442210,2.4539,2689.0,2688.3,0.04338159]
[1724730442211,3.71963,2688.5,2688.3,0.04338159]
[1724730442435,6.70500058,2688.6,2688.3,0.04338159]
[1724730442647,7.43899,2688.6,2688.2,2.2596]
[1724730442838,7.43899,2688.6,2688.4,0.04338159]
[1724730443157,3.71954,2688.5,2688.2,2.2596]
[1724730443442,3.71954,2688.5,2688.3,0.04338159]
[1724730443657,7.43901,2688.6,2688.3,0.04338159]
[1724730443793,7.43897,2688.6,2687.9,2.2596]
[1724730443997,7.43897,2688.6,2688.0,0.04338159]
[1724730444393,3.71948,2688.6,2688.0,0.04338159]
[1724730444992,3.7192,2688.8,2688.1,2.2596]
[1724730445642,7.43843,2688.8,2688.2,0.04338159]
[1724730445941,7.43843,2688.8,2688.2,0.64569375]
[1724730446144,3.71927,2688.7,2688.2,0.64569375]
[1724730456056,4.96503783,2688.7,2688.2,0.64569375]
[1724730456255,3.71941,2688.6,2688.2,0.64569375]
[1724730456553,3.71941,2688.6,2688.2,0.04338159]
[1724730459667,1.24576783,2688.7,2688.2,0.04338159]
[1724730460486,4.96507783,2688.7,2688.2,0.04338159]
[1724730464446,1.24576783,2688.7,2688.2,0.04338159]
[1724730465349,4.96504783,2688.7,2688.2,0.04338159]
[1724730465578,4.96504783,2688.7,2688.2,0.64570075]
[1724730466904,1.24576783,2688.7,2688.2,0.64570075]
[1724730467469,1.24576783,2688.7,2688.3,2.2981]
[1724730467689,1.24576783,2688.7,2688.4,0.04440941]
[1724730469400,4.96502783,2688.7,2688.4,0.04440941]
[1724730471789,4.96530783,2688.5,2688.4,0.04440941]
[1724730472116,4.96530783,2688.5,2688.0,2.2981]
[1724730472300,4.96530783,2688.5,2688.1,0.04440941]
[1724730473471,1.24576783,2688.5,2688.1,0.04440941]
[1724730476197,5.99831,2688.8,2688.1,3.76441941]
[1724730476198,1.24576783,2688.7,2688.1,3.76441941]
[1724730476385,1.24576783,2688.7,2688.2,2.2981]
[1724730476590,1.24576783,2688.7,2688.3,0.60625194]
[1724730476793,1.24576783,2688.7,2688.3,0.65068932]
[1724730481308,2.2791,2689.1,2688.3,0.65068932]
[1724730481489,7.28,2689.2,2688.6,3.71939]
[1724730481689,2.73452612,2689.1,2688.7,2.7065554]
[1724730482329,3.98029395,2689.1,2688.7,2.7065554]
[1724730482527,2.73452612,2689.1,2688.7,2.7065554]
[1724730482734,2.73452612,2689.1,2688.7,6.4258154]
[1724730483326,2.73452612,2689.1,2688.7,2.7065554]
[1724730483527,2.73452612,2689.1,2688.8,0.64258854]
[1724730483719,2.73452612,2689.1,2688.9,0.0440877]
[1724730484937,8.19440681,2689.3,2688.9,0.0440877]
[1724730485114,4.96424783,2689.3,2688.9,0.0440877]